[Event "Titled Tuesday Blitz October 18 Late 2022"]
[White "Erdogdu, Mert"]
[Black "Licznerski, Lukasz"]
[WhiteFideId "6301495"]
[BlackFideId "1179250"]
[WhiteElo "2413"]
[BlackElo "2403"]
[Result "0-1"]
[Round "08"]
[TimeControl "180+1"]
[Date "2022.10.18"]
[WhiteClock "0:00:10"]
[BlackClock "0:00:15"]

1. e4 {[%clk 0:03:00]}  c6 {[%clk 0:03:00]} 2. d4 {[%clk 0:03:00]}  d5 {[%clk 0:03:00]} 3. exd5 {[%clk 0:03:01]}  cxd5 {[%clk 0:03:01]} 4. c4 {[%clk 0:03:01]}  Nf6 {[%clk 0:03:02]} 5. Nc3 {[%clk 0:03:02]}  g6 {[%clk 0:03:02]} 6. Qb3 {[%clk 0:03:01]}  Bg7 {[%clk 0:03:02]} 7. cxd5 {[%clk 0:03:01]}  O-O {[%clk 0:03:03]} 8. Nge2 {[%clk 0:03:01]}  Nbd7 {[%clk 0:02:47]} 9. g3 {[%clk 0:03:00]}  Nb6 {[%clk 0:02:37]} 10. Bg2 {[%clk 0:02:59]}  a5 {[%clk 0:02:37]} 11. a4 {[%clk 0:02:59]}  Qd6 {[%clk 0:02:35]} 12. O-O {[%clk 0:02:54]}  Rd8 {[%clk 0:02:28]} 13. Nf4 {[%clk 0:02:53]}  Qb4 {[%clk 0:02:20]} 14. Qd1 {[%clk 0:02:50]}  Bg4 {[%clk 0:02:09]} 15. f3 {[%clk 0:02:25]}  Bf5 {[%clk 0:02:09]} 16. g4 {[%clk 0:02:24]}  Bc8 {[%clk 0:02:08]} 17. Be3 {[%clk 0:01:58]}  Nfxd5 {[%clk 0:02:06]} 18. Nfxd5 {[%clk 0:01:56]}  Nxd5 {[%clk 0:02:07]} 19. Nxd5 {[%clk 0:01:52]}  Rxd5 {[%clk 0:02:08]} 20. f4 {[%clk 0:01:46]}  Rd8 {[%clk 0:02:03]} 21. d5 {[%clk 0:01:43]}  e6 {[%clk 0:01:58]} 22. f5 {[%clk 0:01:39]}  exf5 {[%clk 0:01:54]} 23. gxf5 {[%clk 0:01:37]}  Bxf5 {[%clk 0:01:54]} 24. Rc1 {[%clk 0:01:30]}  Rac8 {[%clk 0:01:41]} 25. Rxc8 {[%clk 0:01:28]}  Rxc8 {[%clk 0:01:41]} 26. d6 {[%clk 0:01:22]}  Rd8 {[%clk 0:01:38]} 27. Bf4 {[%clk 0:01:19]}  Qxb2 {[%clk 0:01:23]} 28. Kh1 {[%clk 0:01:11]}  Be5 {[%clk 0:01:17]} 29. Qd5 {[%clk 0:01:04]}  Bxf4 {[%clk 0:01:11]} 30. Rxf4 {[%clk 0:01:05]}  Qb6 {[%clk 0:00:22]} 31. Rd4 {[%clk 0:00:59]}  Be6 {[%clk 0:00:22]} 32. Qe4 {[%clk 0:00:20]}  Rxd6 {[%clk 0:00:21]} 33. Rxd6 {[%clk 0:00:16]}  Qxd6 {[%clk 0:00:22]} 34. h3 {[%clk 0:00:16]}  Qd1+ {[%clk 0:00:20]} 35. Kh2 {[%clk 0:00:16]}  Qd6+ {[%clk 0:00:21]} 36. Kh1 {[%clk 0:00:17]}  b6 {[%clk 0:00:21]} 37. Qb7 {[%clk 0:00:10]}  h5 {[%clk 0:00:21]} 38. Qa8+ {[%clk 0:00:09]}  Kg7 {[%clk 0:00:20]} 39. Qb7 {[%clk 0:00:10]}  Qd1+ {[%clk 0:00:19]} 40. Kh2 {[%clk 0:00:10]}  Qd6+ {[%clk 0:00:19]} 41. Kg1 {[%clk 0:00:10]}  h4 {[%clk 0:00:19]} 42. Kh1 {[%clk 0:00:10]}  Qd1+ {[%clk 0:00:17]} 43. Kh2 {[%clk 0:00:10]}  Qd4 {[%clk 0:00:18]} 44. Qc6 {[%clk 0:00:10]}  Qf4+ {[%clk 0:00:16]} 45. Kg1 {[%clk 0:00:10]}  Qe3+ {[%clk 0:00:15]} 46. Kh2 {[%clk 0:00:10]}  Qg3+ {[%clk 0:00:15]} 47. Kh1 {[%clk 0:00:10]}  Bxh3 {[%clk 0:00:15]} 0-1


[Site "https://www.chess.com"]

[Event "Titled Tuesday Blitz October 18 Late 2022"]
[White "Ezat, Mohamed"]
[Black "Von Buelow, Georg"]
[WhiteFideId "10600906"]
[BlackFideId "4620658"]
[WhiteElo "2386"]
[BlackElo "2234"]
[Result "1-0"]
[Round "08"]
[TimeControl "180+1"]
[Date "2022.10.19"]
[WhiteClock "0:01:46"]
[BlackClock "0:00:08"]

1. e4 {[%clk 0:03:00]}  c5 {[%clk 0:02:59]} 2. d4 {[%clk 0:03:00]}  cxd4 {[%clk 0:03:00]} 3. c3 {[%clk 0:03:01]}  Nf6 {[%clk 0:03:00]} 4. e5 {[%clk 0:03:00]}  Nd5 {[%clk 0:03:00]} 5. Nf3 {[%clk 0:03:01]}  e6 {[%clk 0:03:00]} 6. Bc4 {[%clk 0:03:01]}  d6 {[%clk 0:02:59]} 7. Bxd5 {[%clk 0:03:01]}  exd5 {[%clk 0:02:58]} 8. O-O {[%clk 0:03:02]}  Be7 {[%clk 0:02:58]} 9. exd6 {[%clk 0:02:57]}  Qxd6 {[%clk 0:02:58]} 10. Qxd4 {[%clk 0:02:54]}  O-O {[%clk 0:02:57]} 11. Bg5 {[%clk 0:02:54]}  Bxg5 {[%clk 0:02:45]} 12. Nxg5 {[%clk 0:02:53]}  Nc6 {[%clk 0:02:32]} 13. Qh4 {[%clk 0:02:53]}  Bf5 {[%clk 0:02:31]} 14. Nd2 {[%clk 0:02:51]}  Rfe8 {[%clk 0:02:26]} 15. Rfe1 {[%clk 0:02:46]}  d4 {[%clk 0:02:03]} 16. Nde4 {[%clk 0:02:29]}  Qg6 {[%clk 0:01:38]} 17. Ng3 {[%clk 0:02:25]}  dxc3 {[%clk 0:01:33]} 18. bxc3 {[%clk 0:02:25]}  h6 {[%clk 0:01:24]} 19. Nf3 {[%clk 0:02:25]}  Bg4 {[%clk 0:01:15]} 20. Nd4 {[%clk 0:02:18]}  Ne5 {[%clk 0:00:31]} 21. h3 {[%clk 0:02:16]}  Bd7 {[%clk 0:00:30]} 22. Re3 {[%clk 0:02:04]}  Nc4 {[%clk 0:00:24]} 23. Rxe8+ {[%clk 0:02:03]}  Rxe8 {[%clk 0:00:24]} 24. Ndf5 {[%clk 0:02:02]}  Bxf5 {[%clk 0:00:20]} 25. Qxc4 {[%clk 0:02:02]}  Bd7 {[%clk 0:00:15]} 26. Qd4 {[%clk 0:01:59]}  Bc6 {[%clk 0:00:14]} 27. Qxa7 {[%clk 0:01:59]}  Qc2 {[%clk 0:00:14]} 28. Qd4 {[%clk 0:01:57]}  Ra8 {[%clk 0:00:11]} 29. Kh2 {[%clk 0:01:46]}  Rxa2 {[%clk 0:00:10]} 30. Rxa2 {[%clk 0:01:46]}  Qxa2 {[%clk 0:00:11]} 31. Nf5 {[%clk 0:01:47]}  Qa8 {[%clk 0:00:08]} 32. Qxg7# {[%clk 0:01:46]} 1-0


[Site "https://www.chess.com"]

[Event "Titled Tuesday Blitz October 18 Late 2022"]
[White "Fernandez De La Vara, Arnaldo"]
[Black "Reprintsev, Alexander"]
[WhiteFideId "3518388"]
[BlackFideId "14100541"]
[WhiteElo "2387"]
[BlackElo "2230"]
[Result "0-1"]
[Round "08"]
[TimeControl "180+1"]
[Date "2022.10.19"]
[WhiteClock "0:00:01"]
[BlackClock "0:00:10"]

1. Nf3 {[%clk 0:03:00]}  d5 {[%clk 0:02:59]} 2. b3 {[%clk 0:03:01]}  Bf5 {[%clk 0:02:57]} 3. Bb2 {[%clk 0:03:01]}  Nd7 {[%clk 0:02:57]} 4. g3 {[%clk 0:03:02]}  Ngf6 {[%clk 0:02:57]} 5. Bg2 {[%clk 0:03:03]}  e6 {[%clk 0:02:47]} 6. O-O {[%clk 0:03:03]}  h6 {[%clk 0:02:47]} 7. d3 {[%clk 0:03:04]}  Be7 {[%clk 0:02:46]} 8. Nbd2 {[%clk 0:03:04]}  O-O {[%clk 0:02:46]} 9. Qe1 {[%clk 0:03:05]}  Bh7 {[%clk 0:02:44]} 10. e4 {[%clk 0:03:05]}  c5 {[%clk 0:02:42]} 11. Qe2 {[%clk 0:02:58]}  a5 {[%clk 0:02:42]} 12. a4 {[%clk 0:02:56]}  Re8 {[%clk 0:02:34]} 13. Ne1 {[%clk 0:02:45]}  Nb6 {[%clk 0:02:30]} 14. f4 {[%clk 0:02:34]}  dxe4 {[%clk 0:02:19]} 15. Nxe4 {[%clk 0:02:25]}  Nxe4 {[%clk 0:02:13]} 16. Bxe4 {[%clk 0:02:25]}  Bxe4 {[%clk 0:02:12]} 17. Qxe4 {[%clk 0:02:26]}  Qd5 {[%clk 0:02:11]} 18. Qe2 {[%clk 0:02:18]}  c4 {[%clk 0:01:56]} 19. dxc4 {[%clk 0:01:55]}  Bc5+ {[%clk 0:01:56]} 20. Rf2 {[%clk 0:01:55]}  Bxf2+ {[%clk 0:01:41]} 21. Qxf2 {[%clk 0:01:56]}  Qc6 {[%clk 0:01:36]} 22. Nd3 {[%clk 0:01:56]}  Nd7 {[%clk 0:01:35]} 23. g4 {[%clk 0:01:44]}  b6 {[%clk 0:01:32]} 24. Re1 {[%clk 0:01:30]}  Rad8 {[%clk 0:01:29]} 25. Bd4 {[%clk 0:01:26]}  f6 {[%clk 0:01:25]} 26. g5 {[%clk 0:01:06]}  hxg5 {[%clk 0:01:24]} 27. fxg5 {[%clk 0:01:06]}  e5 {[%clk 0:01:23]} 28. gxf6 {[%clk 0:01:07]}  Qxf6 {[%clk 0:01:18]} 29. Be3 {[%clk 0:00:55]}  Qxf2+ {[%clk 0:01:18]} 30. Nxf2 {[%clk 0:00:43]}  Re6 {[%clk 0:01:17]} 31. Rd1 {[%clk 0:00:40]}  Ree8 {[%clk 0:01:01]} 32. Rd6 {[%clk 0:00:38]}  Kf7 {[%clk 0:00:46]} 33. Kg2 {[%clk 0:00:38]}  Re6 {[%clk 0:00:43]} 34. Rd2 {[%clk 0:00:26]}  Ke8 {[%clk 0:00:42]} 35. Re2 {[%clk 0:00:23]}  Nf6 {[%clk 0:00:38]} 36. Nd3 {[%clk 0:00:16]}  Kf7 {[%clk 0:00:31]} 37. h3 {[%clk 0:00:15]}  Rde8 {[%clk 0:00:31]} 38. Bf2 {[%clk 0:00:10]}  Nh5 {[%clk 0:00:28]} 39. Re4 {[%clk 0:00:08]}  g5 {[%clk 0:00:25]} 40. Kf3 {[%clk 0:00:06]}  Nf4 {[%clk 0:00:25]} 41. Be3 {[%clk 0:00:02]}  Nxh3 {[%clk 0:00:21]} 42. Kg4 {[%clk 0:00:03]}  Nf4 {[%clk 0:00:18]} 43. Kxg5 {[%clk 0:00:03]}  Rg8+ {[%clk 0:00:16]} 44. Kf5 {[%clk 0:00:02]}  Nxd3 {[%clk 0:00:14]} 45. cxd3 {[%clk 0:00:03]}  Rge8 {[%clk 0:00:13]} 46. d4 {[%clk 0:00:02]}  Rf6+ {[%clk 0:00:13]} 47. Kg4 {[%clk 0:00:01]}  exd4 {[%clk 0:00:13]} 48. Rxe8 {[%clk 0:00:02]}  Kxe8 {[%clk 0:00:13]} 49. Bxd4 {[%clk 0:00:03]}  Rd6 {[%clk 0:00:13]} 50. Be3 {[%clk 0:00:01]}  Kd7 {[%clk 0:00:13]} 51. Kf4 {[%clk 0:00:01]}  Kc6 {[%clk 0:00:14]} 52. Ke4 {[%clk 0:00:02]}  Rd1 {[%clk 0:00:14]} 53. Bd4 {[%clk 0:00:01]}  Rb1 {[%clk 0:00:14]} 54. c5 {[%clk 0:00:01]}  bxc5 {[%clk 0:00:13]} 55. Bc3 {[%clk 0:00:02]}  Rxb3 {[%clk 0:00:13]} 56. Bxa5 {[%clk 0:00:02]}  Ra3 {[%clk 0:00:13]} 57. Bd2 {[%clk 0:00:03]}  Rxa4+ {[%clk 0:00:12]} 58. Kd3 {[%clk 0:00:03]}  Rd4+ {[%clk 0:00:11]} 59. Kc2 {[%clk 0:00:03]}  Kd5 {[%clk 0:00:11]} 60. Bc3 {[%clk 0:00:03]}  Rh4 {[%clk 0:00:10]} 61. Bb2 {[%clk 0:00:01]}  Kc4 {[%clk 0:00:10]} 62. Bf6 {[%clk 0:00:01]}  Rh2+ {[%clk 0:00:11]} 63. Kc1 {[%clk 0:00:01]}  Kd3 {[%clk 0:00:11]} 64. Kb1 {[%clk 0:00:01]}  Rh1+ {[%clk 0:00:10]} 0-1


[Site "https://www.chess.com"]

[Event "Titled Tuesday Blitz October 18 Late 2022"]
[White "Golubev, Mikhail"]
[Black "Jaferian, Koosha"]
[WhiteFideId "14100983"]
[BlackFideId "12507440"]
[WhiteElo "2374"]
[BlackElo "2127"]
[Result "0-1"]
[Round "08"]
[TimeControl "180+1"]
[Date "2022.10.18"]
[WhiteClock "0:00:20"]
[BlackClock "0:00:54"]

1. e4 {[%clk 0:03:00]}  c6 {[%clk 0:03:00]} 2. d4 {[%clk 0:03:00]}  d5 {[%clk 0:03:00]} 3. e5 {[%clk 0:03:00]}  Bf5 {[%clk 0:03:00]} 4. h4 {[%clk 0:02:59]}  h5 {[%clk 0:03:00]} 5. Bd3 {[%clk 0:02:58]}  Bxd3 {[%clk 0:03:00]} 6. Qxd3 {[%clk 0:02:59]}  Qa5+ {[%clk 0:02:59]} 7. b4 {[%clk 0:02:48]}  Qxb4+ {[%clk 0:02:54]} 8. Nd2 {[%clk 0:02:45]}  Qb5 {[%clk 0:02:52]} 9. c4 {[%clk 0:02:38]}  dxc4 {[%clk 0:02:52]} 10. Nxc4 {[%clk 0:02:38]}  e6 {[%clk 0:02:43]} 11. Rb1 {[%clk 0:02:36]}  Qa6 {[%clk 0:02:26]} 12. Nf3 {[%clk 0:02:25]}  Nd7 {[%clk 0:02:16]} 13. Ng5 {[%clk 0:02:23]}  Nh6 {[%clk 0:02:09]} 14. Nxe6 {[%clk 0:01:56]}  fxe6 {[%clk 0:02:00]} 15. Qg6+ {[%clk 0:01:55]}  Kd8 {[%clk 0:01:58]} 16. Qxe6 {[%clk 0:01:55]}  Be7 {[%clk 0:01:45]} 17. O-O {[%clk 0:01:24]}  Nf8 {[%clk 0:01:40]} 18. Qh3 {[%clk 0:01:11]}  Qxc4 {[%clk 0:01:40]} 19. Rxb7 {[%clk 0:01:11]}  Qe6 {[%clk 0:01:32]} 20. Qc3 {[%clk 0:01:00]}  Nd7 {[%clk 0:01:23]} 21. Bxh6 {[%clk 0:00:51]}  Rxh6 {[%clk 0:01:18]} 22. Rfb1 {[%clk 0:00:50]}  Rg6 {[%clk 0:01:08]} 23. Qa5+ {[%clk 0:00:39]}  Ke8 {[%clk 0:01:08]} 24. Rxa7 {[%clk 0:00:39]}  Rxa7 {[%clk 0:01:09]} 25. Qxa7 {[%clk 0:00:40]}  Qd5 {[%clk 0:01:06]} 26. g3 {[%clk 0:00:37]}  Bxh4 {[%clk 0:01:07]} 27. Qa8+ {[%clk 0:00:24]}  Kf7 {[%clk 0:01:04]} 28. Rb7 {[%clk 0:00:20]}  Bxg3 {[%clk 0:00:54]} 0-1


[Site "https://www.chess.com"]

[Event "Titled Tuesday Blitz October 18 Late 2022"]
[White "Hoffmann, Asa"]
[Black "Curtis, John"]
[WhiteFideId "2001470"]
[BlackFideId "3200256"]
[WhiteElo "2117"]
[BlackElo "2203"]
[Result "1-0"]
[Round "08"]
[TimeControl "180+1"]
[Date "2022.10.19"]
[WhiteClock "0:00:06"]
[BlackClock "0:00:16"]

1. d4 {[%clk 0:02:08]}  Nf6 {[%clk 0:02:58]} 2. Bg5 {[%clk 0:02:04]}  e6 {[%clk 0:02:54]} 3. Nd2 {[%clk 0:02:02]}  d5 {[%clk 0:02:53]} 4. e3 {[%clk 0:02:01]}  Nbd7 {[%clk 0:02:39]} 5. f4 {[%clk 0:01:59]}  Be7 {[%clk 0:02:38]} 6. Bd3 {[%clk 0:01:59]}  c5 {[%clk 0:02:14]} 7. c3 {[%clk 0:01:58]}  b6 {[%clk 0:02:14]} 8. Ngf3 {[%clk 0:01:58]}  Bb7 {[%clk 0:02:14]} 9. O-O {[%clk 0:01:57]}  Ne4 {[%clk 0:02:14]} 10. Bxe7 {[%clk 0:01:54]}  Qxe7 {[%clk 0:02:15]} 11. Bxe4 {[%clk 0:01:52]}  dxe4 {[%clk 0:02:14]} 12. Ne5 {[%clk 0:01:52]}  cxd4 {[%clk 0:02:00]} 13. cxd4 {[%clk 0:01:48]}  O-O {[%clk 0:01:52]} 14. Rc1 {[%clk 0:01:45]}  Rfc8 {[%clk 0:01:48]} 15. Qa4 {[%clk 0:01:43]}  Nxe5 {[%clk 0:01:23]} 16. fxe5 {[%clk 0:01:43]}  h6 {[%clk 0:01:16]} 17. b3 {[%clk 0:01:00]}  a6 {[%clk 0:01:08]} 18. h3 {[%clk 0:00:49]}  b5 {[%clk 0:01:07]} 19. Qa5 {[%clk 0:00:46]}  Qg5 {[%clk 0:01:02]} 20. Rce1 {[%clk 0:00:32]}  Rc2 {[%clk 0:00:57]} 21. Rf2 {[%clk 0:00:31]}  Rac8 {[%clk 0:00:50]} 22. Qb6 {[%clk 0:00:29]}  Rc1 {[%clk 0:00:50]} 23. Rxc1 {[%clk 0:00:22]}  Rxc1+ {[%clk 0:00:50]} 24. Nf1 {[%clk 0:00:22]}  Qxe3 {[%clk 0:00:18]} 25. Qxb7 {[%clk 0:00:18]}  Rxf1+ {[%clk 0:00:18]} 26. Kxf1 {[%clk 0:00:17]}  Qd3+ {[%clk 0:00:13]} 27. Kg1 {[%clk 0:00:16]}  Qxd4 {[%clk 0:00:12]} 28. Qc8+ {[%clk 0:00:13]}  Kh7 {[%clk 0:00:12]} 29. Qc2 {[%clk 0:00:12]}  g6 {[%clk 0:00:11]} 30. Qd2 {[%clk 0:00:09]}  Qa1+ {[%clk 0:00:09]} 31. Kh2 {[%clk 0:00:09]}  Qxe5+ {[%clk 0:00:09]} 32. g3 {[%clk 0:00:08]}  g5 {[%clk 0:00:10]} 33. Rxf7+ {[%clk 0:00:08]}  Kg6 {[%clk 0:00:10]} 34. Rf1 {[%clk 0:00:07]}  e3 {[%clk 0:00:11]} 35. Qe2 {[%clk 0:00:07]}  h5 {[%clk 0:00:11]} 36. Re1 {[%clk 0:00:07]}  h4 {[%clk 0:00:11]} 37. Qxe3 {[%clk 0:00:07]}  hxg3+ {[%clk 0:00:12]} 38. Kg2 {[%clk 0:00:08]}  Qb2+ {[%clk 0:00:12]} 39. Re2 {[%clk 0:00:08]}  Qf6 {[%clk 0:00:09]} 40. Kxg3 {[%clk 0:00:06]}  e5 {[%clk 0:00:07]} 41. Qe4+ {[%clk 0:00:06]}  Kh5 {[%clk 0:00:07]} 42. Qxe5 {[%clk 0:00:05]}  Qxe5+ {[%clk 0:00:07]} 43. Rxe5 {[%clk 0:00:05]}  b4 {[%clk 0:00:07]} 44. h4 {[%clk 0:00:04]}  Kh6 {[%clk 0:00:07]} 45. hxg5+ {[%clk 0:00:04]}  Kg6 {[%clk 0:00:07]} 46. Kg4 {[%clk 0:00:05]}  Kf7 {[%clk 0:00:07]} 47. Ra5 {[%clk 0:00:04]}  Ke6 {[%clk 0:00:06]} 48. Rxa6+ {[%clk 0:00:05]}  Ke5 {[%clk 0:00:07]} 49. Rb6 {[%clk 0:00:05]}  Kd4 {[%clk 0:00:08]} 50. Rxb4+ {[%clk 0:00:05]}  Kc3 {[%clk 0:00:09]} 51. g6 {[%clk 0:00:05]}  Kxb4 {[%clk 0:00:10]} 52. g7 {[%clk 0:00:05]}  Ka3 {[%clk 0:00:11]} 53. g8=Q {[%clk 0:00:05]}  Kxa2 {[%clk 0:00:12]} 54. Qc4 {[%clk 0:00:04]}  Ka3 {[%clk 0:00:12]} 55. b4 {[%clk 0:00:04]}  Ka4 {[%clk 0:00:12]} 56. b5+ {[%clk 0:00:04]}  Ka5 {[%clk 0:00:13]} 57. b6 {[%clk 0:00:05]}  Kxb6 {[%clk 0:00:13]} 58. Kf5 {[%clk 0:00:05]}  Ka5 {[%clk 0:00:14]} 59. Qb3 {[%clk 0:00:05]}  Ka6 {[%clk 0:00:14]} 60. Ke5 {[%clk 0:00:05]}  Ka7 {[%clk 0:00:15]} 61. Kd6 {[%clk 0:00:05]}  Ka6 {[%clk 0:00:15]} 62. Kc6 {[%clk 0:00:05]}  Ka5 {[%clk 0:00:16]} 63. Qa3# {[%clk 0:00:06]} 1-0


[Site "https://www.chess.com"]

[Event "Titled Tuesday Blitz October 18 Late 2022"]
[White "Holt, Conrad"]
[Black "Amburgy, Ryan"]
[WhiteFideId "2034387"]
[BlackFideId "30924820"]
[WhiteElo "2592"]
[BlackElo "2121"]
[Result "1-0"]
[Round "08"]
[TimeControl "180+1"]
[Date "2022.10.18"]
[WhiteClock "0:02:26"]
[BlackClock "0:02:17"]

1. d4 {[%clk 0:03:00]}  Nf6 {[%clk 0:02:59]} 2. c4 {[%clk 0:03:01]}  g6 {[%clk 0:03:00]} 3. Nc3 {[%clk 0:03:01]}  Bg7 {[%clk 0:03:00]} 4. e4 {[%clk 0:03:01]}  d6 {[%clk 0:03:01]} 5. Nf3 {[%clk 0:03:01]}  O-O {[%clk 0:03:02]} 6. h3 {[%clk 0:03:02]}  e5 {[%clk 0:03:01]} 7. dxe5 {[%clk 0:03:03]}  dxe5 {[%clk 0:03:02]} 8. Qxd8 {[%clk 0:03:03]}  Rxd8 {[%clk 0:03:03]} 9. Bg5 {[%clk 0:03:03]}  Na6 {[%clk 0:02:56]} 10. Nd5 {[%clk 0:03:01]}  Rd6 {[%clk 0:02:57]} 11. Bxf6 {[%clk 0:03:01]}  Bxf6 {[%clk 0:02:57]} 12. Rc1 {[%clk 0:03:01]}  c6 {[%clk 0:02:54]} 13. Nxf6+ {[%clk 0:03:01]}  Rxf6 {[%clk 0:02:54]} 14. c5 {[%clk 0:03:02]}  Nc7 {[%clk 0:02:50]} 15. Nxe5 {[%clk 0:03:00]}  Re6 {[%clk 0:02:39]} 16. f4 {[%clk 0:03:00]}  f6 {[%clk 0:02:39]} 17. Bc4 {[%clk 0:02:59]}  fxe5 {[%clk 0:02:40]} 18. f5 {[%clk 0:03:00]}  gxf5 {[%clk 0:02:39]} 19. exf5 {[%clk 0:03:00]}  Nd5 {[%clk 0:02:40]} 20. fxe6 {[%clk 0:03:00]}  Bxe6 {[%clk 0:02:41]} 21. O-O {[%clk 0:03:00]}  Re8 {[%clk 0:02:37]} 22. Rce1 {[%clk 0:03:00]}  Bf7 {[%clk 0:02:37]} 23. Rf5 {[%clk 0:02:59]}  e4 {[%clk 0:02:36]} 24. Kf2 {[%clk 0:02:45]}  Kg7 {[%clk 0:02:35]} 25. Bxd5 {[%clk 0:02:42]}  Bxd5 {[%clk 0:02:33]} 26. Ke3 {[%clk 0:02:42]}  a5 {[%clk 0:02:28]} 27. a4 {[%clk 0:02:40]}  b6 {[%clk 0:02:22]} 28. cxb6 {[%clk 0:02:27]}  Rb8 {[%clk 0:02:23]} 29. Ref1 {[%clk 0:02:27]}  Rxb6 {[%clk 0:02:23]} 30. Rg5+ {[%clk 0:02:28]}  Kh6 {[%clk 0:02:23]} 31. h4 {[%clk 0:02:28]}  Rb3+ {[%clk 0:02:17]} 32. Kd4 {[%clk 0:02:26]} 1-0


[Site "https://www.chess.com"]

[Event "Titled Tuesday Blitz October 18 Late 2022"]
[White "Ibadov, Dashgyn"]
[Black "Kovacevic, Radmila"]
[WhiteFideId "24107514"]
[BlackFideId "933171"]
[WhiteElo "2208"]
[BlackElo "2208"]
[Result "1-0"]
[Round "08"]
[TimeControl "180+1"]
[Date "2022.10.19"]
[WhiteClock "0:00:49"]
[BlackClock "0:00:03"]

1. e4 {[%clk 0:03:00]}  e5 {[%clk 0:02:59]} 2. Nf3 {[%clk 0:03:00]}  d5 {[%clk 0:02:59]} 3. Nxe5 {[%clk 0:02:55]}  Bd6 {[%clk 0:02:59]} 4. d4 {[%clk 0:02:55]}  dxe4 {[%clk 0:02:59]} 5. Bc4 {[%clk 0:02:55]}  Bxe5 {[%clk 0:02:59]} 6. Qh5 {[%clk 0:02:55]}  Qe7 {[%clk 0:02:59]} 7. Qxe5 {[%clk 0:02:55]}  Qxe5 {[%clk 0:02:58]} 8. dxe5 {[%clk 0:02:56]}  Nc6 {[%clk 0:02:58]} 9. Nc3 {[%clk 0:02:54]}  Nxe5 {[%clk 0:02:58]} 10. Bb3 {[%clk 0:02:54]}  Nf6 {[%clk 0:02:46]} 11. Bf4 {[%clk 0:02:51]}  Nc6 {[%clk 0:02:39]} 12. Bxc7 {[%clk 0:02:49]}  O-O {[%clk 0:02:39]} 13. O-O-O {[%clk 0:02:45]}  Bg4 {[%clk 0:02:34]} 14. Rde1 {[%clk 0:02:44]}  Rfc8 {[%clk 0:02:32]} 15. Bg3 {[%clk 0:02:41]}  Bf5 {[%clk 0:02:29]} 16. Rd1 {[%clk 0:02:30]}  Na5 {[%clk 0:02:19]} 17. Be5 {[%clk 0:02:07]}  Nxb3+ {[%clk 0:02:15]} 18. axb3 {[%clk 0:02:08]}  Ng4 {[%clk 0:02:07]} 19. Bd4 {[%clk 0:02:07]}  a6 {[%clk 0:01:58]} 20. h3 {[%clk 0:02:04]}  Nf6 {[%clk 0:01:53]} 21. Bxf6 {[%clk 0:02:02]}  gxf6 {[%clk 0:01:53]} 22. Rhe1 {[%clk 0:01:53]}  Re8 {[%clk 0:01:46]} 23. Nd5 {[%clk 0:01:51]}  Kg7 {[%clk 0:01:28]} 24. Nc7 {[%clk 0:01:49]}  Rec8 {[%clk 0:01:23]} 25. Nxa8 {[%clk 0:01:48]}  Rxa8 {[%clk 0:01:24]} 26. g4 {[%clk 0:01:41]}  Bg6 {[%clk 0:01:24]} 27. Rd7 {[%clk 0:01:40]}  b5 {[%clk 0:01:21]} 28. c3 {[%clk 0:01:36]}  a5 {[%clk 0:01:20]} 29. Kd2 {[%clk 0:01:34]}  a4 {[%clk 0:01:18]} 30. bxa4 {[%clk 0:01:28]}  Rxa4 {[%clk 0:01:06]} 31. Rb7 {[%clk 0:01:22]}  Ra5 {[%clk 0:01:05]} 32. Ke3 {[%clk 0:01:19]}  f5 {[%clk 0:00:55]} 33. Rd1 {[%clk 0:01:07]}  h5 {[%clk 0:00:53]} 34. gxh5 {[%clk 0:01:02]}  Bxh5 {[%clk 0:00:52]} 35. Rd5 {[%clk 0:01:03]}  Bg6 {[%clk 0:00:50]} 36. Rbxb5 {[%clk 0:01:00]}  Ra2 {[%clk 0:00:48]} 37. c4 {[%clk 0:00:58]}  Kf6 {[%clk 0:00:46]} 38. c5 {[%clk 0:00:57]}  Ra1 {[%clk 0:00:45]} 39. c6 {[%clk 0:00:56]}  Re1+ {[%clk 0:00:45]} 40. Kd2 {[%clk 0:00:56]}  Rf1 {[%clk 0:00:31]} 41. Ke2 {[%clk 0:00:55]}  Rc1 {[%clk 0:00:26]} 42. Rdc5 {[%clk 0:00:54]}  Bh5+ {[%clk 0:00:25]} 43. Kd2 {[%clk 0:00:55]}  Rd1+ {[%clk 0:00:23]} 44. Kc2 {[%clk 0:00:55]}  Rf1 {[%clk 0:00:06]} 45. Rxf5+ {[%clk 0:00:53]}  Ke6 {[%clk 0:00:07]} 46. Rxh5 {[%clk 0:00:52]}  Rxf2+ {[%clk 0:00:07]} 47. Kc3 {[%clk 0:00:52]}  f5 {[%clk 0:00:03]} 48. c7 {[%clk 0:00:50]}  Kd7 {[%clk 0:00:03]} 49. Rh7+ {[%clk 0:00:50]}  Kc8 {[%clk 0:00:03]} 50. Rb8# {[%clk 0:00:49]} 1-0


[Site "https://www.chess.com"]

[Event "Titled Tuesday Blitz October 18 Late 2022"]
[White "Ismayil, Malak"]
[Black "Adewumi, Tanitoluwa"]
[WhiteFideId "13412604"]
[BlackFideId "30966396"]
[WhiteElo "1879"]
[BlackElo "2523"]
[Result "0-1"]
[Round "08"]
[TimeControl "180+1"]
[Date "2022.10.19"]
[WhiteClock "0:00:03"]
[BlackClock "0:00:09"]

1. e4 {[%clk 0:03:00]}  c5 {[%clk 0:02:55]} 2. Nf3 {[%clk 0:03:00]}  e6 {[%clk 0:02:54]} 3. b3 {[%clk 0:02:58]}  Nf6 {[%clk 0:02:53]} 4. d3 {[%clk 0:02:58]}  Nc6 {[%clk 0:02:52]} 5. Bb2 {[%clk 0:02:57]}  d5 {[%clk 0:02:52]} 6. Nbd2 {[%clk 0:02:54]}  d4 {[%clk 0:02:52]} 7. g3 {[%clk 0:02:51]}  e5 {[%clk 0:02:52]} 8. Bg2 {[%clk 0:02:52]}  Bd6 {[%clk 0:02:53]} 9. O-O {[%clk 0:02:51]}  O-O {[%clk 0:02:53]} 10. h3 {[%clk 0:02:51]}  h6 {[%clk 0:02:53]} 11. Kh2 {[%clk 0:02:50]}  Nh5 {[%clk 0:02:53]} 12. a4 {[%clk 0:02:47]}  a6 {[%clk 0:02:52]} 13. Nxd4 {[%clk 0:02:38]}  Nxg3 {[%clk 0:02:51]} 14. fxg3 {[%clk 0:02:31]}  exd4 {[%clk 0:02:51]} 15. Nc4 {[%clk 0:02:25]}  Bc7 {[%clk 0:02:50]} 16. Qh5 {[%clk 0:02:20]}  Be6 {[%clk 0:02:49]} 17. Bc1 {[%clk 0:02:07]}  b5 {[%clk 0:02:11]} 18. Nb2 {[%clk 0:01:56]}  Nb4 {[%clk 0:01:23]} 19. Qe2 {[%clk 0:01:19]}  Be5 {[%clk 0:01:10]} 20. Bf4 {[%clk 0:01:17]}  f6 {[%clk 0:00:53]} 21. Rac1 {[%clk 0:00:43]}  Na2 {[%clk 0:00:45]} 22. Ra1 {[%clk 0:00:35]}  Nc3 {[%clk 0:00:44]} 23. Qd2 {[%clk 0:00:35]}  Qd6 {[%clk 0:00:42]} 24. Nd1 {[%clk 0:00:34]}  Nxd1 {[%clk 0:00:39]} 25. Qxd1 {[%clk 0:00:31]}  g5 {[%clk 0:00:40]} 26. Bxe5 {[%clk 0:00:30]}  fxe5 {[%clk 0:00:40]} 27. Qh5 {[%clk 0:00:26]}  Kg7 {[%clk 0:00:40]} 28. a5 {[%clk 0:00:18]}  Rxf1 {[%clk 0:00:36]} 29. Rxf1 {[%clk 0:00:19]}  Rf8 {[%clk 0:00:36]} 30. Rxf8 {[%clk 0:00:18]}  Qxf8 {[%clk 0:00:36]} 31. Qf3 {[%clk 0:00:16]}  Qxf3 {[%clk 0:00:32]} 32. Bxf3 {[%clk 0:00:17]}  c4 {[%clk 0:00:17]} 33. b4 {[%clk 0:00:14]}  Kf6 {[%clk 0:00:13]} 34. Kg2 {[%clk 0:00:13]}  Ke7 {[%clk 0:00:13]} 35. Kf2 {[%clk 0:00:14]}  cxd3 {[%clk 0:00:10]} 36. cxd3 {[%clk 0:00:14]}  Bxh3 {[%clk 0:00:11]} 37. g4 {[%clk 0:00:12]}  Kf6 {[%clk 0:00:11]} 38. Be2 {[%clk 0:00:08]}  h5 {[%clk 0:00:11]} 39. gxh5 {[%clk 0:00:08]}  g4 {[%clk 0:00:09]} 40. h6 {[%clk 0:00:06]}  Kg6 {[%clk 0:00:09]} 41. Kg3 {[%clk 0:00:05]}  Kxh6 {[%clk 0:00:09]} 42. Bxg4 {[%clk 0:00:06]}  Bf1 {[%clk 0:00:10]} 43. Bc8 {[%clk 0:00:04]}  Bxd3 {[%clk 0:00:09]} 44. Bxa6 {[%clk 0:00:05]}  Kg5 {[%clk 0:00:09]} 45. Kf3 {[%clk 0:00:03]}  Bc4 {[%clk 0:00:09]} 46. Bb7 {[%clk 0:00:03]}  d3 {[%clk 0:00:09]} 47. a6 {[%clk 0:00:03]}  d2 {[%clk 0:00:09]} 0-1


[Site "https://www.chess.com"]